bitfinex/quotes_SOLUSD_20240702
["timestamp","ask_amount","ask_price","bid_price","bid_amount"]
[1719883568465,28.5004,147.65,147.6,106.7749]
[1719883568774,12.39,147.61,147.6,106.7749]
[1719883570868,12.39,147.61,147.6,108.12978782]
[1719883571067,15.4981,147.65,147.62,106.7741]
[1719883571267,12.39,147.64,147.62,106.7741]
[1719883571481,12.39,147.63,147.61,23.7104]
[1719883571770,12.39,147.62,147.61,23.7104]
[1719883572156,12.39,147.62,147.61,16.936]
[1719883572357,12.39,147.62,147.6,100.0]
[1719883572566,12.39,147.61,147.6,100.0]
[1719883573676,12.39,147.61,147.6,106.775]
[1719883574175,12.39,147.62,147.6,106.775]
[1719883575156,16.28323507,147.68,147.63,100.0]
[1719883575361,12.39,147.64,147.63,100.0]
[1719883577874,12.39,147.64,147.59,100.0]
[1719883578073,12.39,147.61,147.59,100.0]
[1719883578582,12.39,147.61,147.59,106.7754]
[1719883579082,12.39,147.62,147.59,106.7754]
[1719883579457,16.93,147.67,147.61,100.0]
[1719883579664,12.39,147.63,147.61,101.35470498]
[1719883581180,12.39,147.63,147.61,100.0]
[1719883590093,19.1638,147.63,147.61,100.0]
[1719883595989,19.1644,147.62,147.59,100.0]
[1719883596192,12.39,147.61,147.59,100.0]
[1719883601777,12.39,147.61,147.58,6.7759]
[1719883603198,12.39,147.61,147.59,100.0]
[1719883606389,12.39,147.61,147.58,6.7759]
[1719883609187,12.39,147.61,147.59,6.7754]
[1719883613409,12.39,147.61,147.59,106.7754]
[1719883614892,12.39,147.62,147.59,106.7754]
[1719883615608,12.39,147.61,147.59,106.7754]
[1719883616182,12.39,147.61,147.59,100.0]
[1719883618410,16.2765,147.64,147.59,106.7754]
[1719883618596,12.39,147.61,147.59,106.7754]
[1719883619399,12.39,147.6,147.55,16.943]
[1719883619601,12.39,147.58,147.54,6.7775]
[1719883619993,12.39,147.57,147.54,6.7775]
[1719883620184,12.39,147.57,147.55,6.7772]
[1719883620597,12.39,147.57,147.54,123.7217]
[1719883621086,12.39,147.58,147.54,123.7217]
[1719883622992,12.39,147.58,147.56,100.0]
[1719883623591,12.39,147.58,147.56,101.35519903]
[1719883624590,19.166,147.58,147.56,101.35519903]
[1719883626902,19.166,147.58,147.56,100.0]
[1719883627292,12.39,147.57,147.53,100.0]
[1719883627610,12.39,147.56,147.53,100.0]
[1719883628509,12.39,147.55,147.51,123.7264]
[1719883628705,6.1951,147.58,147.5,6.7795]
[1719883628706,12.39,147.53,147.5,6.7795]
[1719883628909,19.1683,147.53,147.49,106.78]
[1719883629095,12.39,147.5,147.46,6.781]
[1719883629295,12.39,147.49,147.46,6.781]
[1719883629503,12.39,147.49,147.47,106.7809]
[1719883629702,12.39,147.5,147.47,106.7809]
[1719883629899,12.39,147.5,147.48,6.7804]
[1719883631314,12.39,147.51,147.48,6.7804]
[1719883631634,12.39,147.52,147.51,0.03590208]
[1719883631797,12.39,147.53,147.51,0.03590208]
[1719883633717,23.0261,147.54,147.51,0.03590208]
[1719883633898,12.39,147.53,147.51,0.03590208]
[1719883635304,19.1683,147.53,147.51,0.03590208]
[1719883636117,12.39,147.53,147.51,0.03590208]
[1719883636310,19.1677,147.55,147.52,100.0]
[1719883636507,12.39,147.54,147.52,100.0]
[1719883636709,12.39,147.53,147.52,100.0]
[1719883637400,12.39,147.53,147.51,0.03590208]
[1719883638817,19.1683,147.53,147.51,1.39158461]
[1719883639326,12.39,147.53,147.51,1.39158461]
[1719883642315,6.7778,147.54,147.51,1.39158461]
[1719883642513,45.4998391,147.58,147.51,1.39158461]
[1719883642713,32.39,147.56,147.52,106.7783]
[1719883643024,39.1669,147.56,147.53,1.3554733]
[1719883643223,6.7774,147.55,147.52,100.0]
[1719883643410,6.7774,147.55,147.51,36.15200208]
[1719883643411,19.1679,147.54,147.51,0.03590208]
[1719883643616,6.7783,147.53,147.51,0.03590208]
[1719883643815,12.39,147.52,147.51,0.03590208]
[1719883647334,6.7779,147.54,147.51,0.03590208]
[1719883647517,12.39,147.52,147.51,0.03590208]
[1719883648738,12.39,147.52,147.48,123.7312]
[1719883649117,32.39,147.56,147.48,123.7312]
[1719883649412,12.39,147.51,147.48,123.7312]
[1719883649808,12.39,147.5,147.48,23.7312]
[1719883651209,12.39,147.5,147.48,123.7312]
[1719883651411,12.39,147.51,147.48,123.7312]
[1719883654420,6.7784,147.53,147.48,123.7312]
[1719883654622,6.7784,147.53,147.49,1.35582319]
[1719883654834,12.39,147.52,147.49,8.13592319]
[1719883657418,12.39,147.52,147.49,1.35582319]
[1719883660342,12.39,147.52,147.5,100.0]
[1719883661340,19.1687,147.52,147.5,100.0]
[1719883665635,12.39,147.52,147.5,100.0]
[1719883666738,12.39,147.51,147.5,100.0]
[1719883668250,19.1689,147.52,147.5,100.0]
[1719883668848,12.39,147.51,147.5,100.0]
[1719883670532,6.7783,147.53,147.5,100.0]
[1719883670739,12.39,147.52,147.5,100.0]
[1719883673837,27.06713826,147.56,147.5,100.0]
[1719883674161,12.39,147.53,147.5,100.0]
[1719883675036,12.39,147.52,147.5,100.0]
[1719883675241,12.39,147.52,147.48,123.7312]
[1719883675468,19.169,147.52,147.48,116.9508]
[1719883675938,12.39,147.51,147.48,116.9508]
[1719883676757,12.39,147.51,147.49,1.35580236]
[1719883679051,19.169,147.52,147.49,1.35580236]
[1719883680246,19.169,147.52,147.48,123.7312]
[1719883680446,6.779,147.52,147.48,116.9508]
[1719883680676,12.39,147.51,147.48,116.9508]
[1719883680861,19.169,147.52,147.48,116.9508]
[1719883681766,19.169,147.52,147.49,1.35584382]
[1719883686964,6.7784,147.53,147.48,123.7313]
[1719883687270,6.7784,147.53,147.49,8.13572664]
[1719883687470,6.7788,147.52,147.48,123.7312]
[1719883689470,6.7788,147.52,147.49,1.35581332]
[1719883690271,6.7779,147.54,147.49,8.13561332]
[1719883690449,6.7779,147.54,147.49,6.7798]
[1719883690649,20.0,147.56,147.51,100.0]
[1719883690851,20.0,147.56,147.51,106.779]
[1719883691052,20.0,147.57,147.51,101.35557823]
[1719883691274,12.39,147.54,147.52,1.35557806]
[1719883691575,12.39,147.55,147.52,1.35557806]
[1719883692153,19.1674,147.55,147.52,1.35557806]
[1719883692766,26.7768,147.57,147.53,100.0]
[1719883692958,12.39,147.56,147.53,100.0]
[1719883693772,12.39,147.56,147.54,1.35538368]
[1719883694775,19.1669,147.56,147.54,1.35538368]
[1719883694975,19.1669,147.56,147.53,100.0]
[1719883695976,12.39,147.55,147.53,100.0]
[1719883697957,12.39,147.55,147.51,100.0]
[1719883697958,12.39,147.54,147.51,100.0]
[1719883698275,19.1678,147.54,147.51,100.0]
[1719883698477,6.7778,147.54,147.51,100.0]
[1719883698683,19.1678,147.54,147.51,100.0]
[1719883698984,12.39,147.53,147.51,100.0]
[1719883701081,12.39,147.54,147.51,100.0]
[1719883701581,12.39,147.53,147.5,16.9482]
[1719883701767,12.39,147.52,147.49,100.0]
[1719883701974,12.39,147.51,147.48,6.7805]
[1719883702180,6.7789,147.52,147.48,6.7805]
[1719883702389,12.39,147.5,147.48,6.7805]
[1719883702574,12.39,147.51,147.48,6.7805]
[1719883702964,12.39,147.5,147.47,123.7328]
[1719883703372,12.39,147.5,147.47,23.7328]
[1719883703571,12.39,147.5,147.47,123.7328]
[1719883704167,12.39,147.5,147.48,6.7804]
[1719883706170,6.7784,147.53,147.48,6.7804]
[1719883706365,12.39,147.51,147.49,106.7801]
[1719883708484,6.7784,147.53,147.49,106.7801]
[1719883708688,12.39,147.51,147.49,106.7801]
[1719883709883,12.39,147.51,147.49,100.0]
[1719883710881,6.7779,147.54,147.49,106.7798]
[1719883711078,6.7779,147.54,147.51,100.0]
[1719883711299,6.7774,147.55,147.51,100.0]
[1719883711496,12.39,147.53,147.51,106.7791]
[1719883712395,32.39,147.54,147.51,106.7791]
[1719883713260,32.39,147.54,147.51,100.0]
[1719883713467,12.39,147.55,147.52,6.7783]
[1719883714974,12.39,147.55,147.51,123.7264]
[1719883715175,19.1675,147.55,147.51,123.7264]
[1719883715376,6.7775,147.55,147.51,123.7264]
[1719883715690,19.1675,147.55,147.51,123.7264]
[1719883715989,6.7775,147.55,147.51,123.7264]
[1719883716190,19.1675,147.55,147.51,123.7264]
[1719883716374,19.1679,147.54,147.5,6.7795]
[1719883717592,6.7783,147.53,147.49,106.7801]
[1719883717771,6.7783,147.53,147.5,1.35279677]
[1719883717971,19.1683,147.53,147.5,1.35279677]
[1719883718212,19.1683,147.53,147.49,106.7801]
[1719883720096,12.39,147.53,147.49,106.7801]
[1719883721700,6.7779,147.54,147.5,6.7796]
[1719883721905,6.7779,147.54,147.49,106.7799]
[1719883722198,6.7783,147.53,147.48,23.7311]
[1719883723201,6.7788,147.52,147.48,23.7311]
[1719883723587,6.7784,147.53,147.48,23.7311]
[1719883723997,6.7784,147.53,147.49,6.78]
[1719883727482,6.7779,147.54,147.49,6.78]
[1719883728801,6.7779,147.54,147.49,106.78]
[1719883729406,6.7779,147.54,147.49,108.13580394]
[1719883730394,6.7783,147.53,147.49,108.13580394]
[1719883730802,6.7783,147.53,147.49,106.78]
[1719883731311,6.7783,147.53,147.49,100.0]
[1719883733993,6.7783,147.53,147.49,101.3558028]
[1719883734402,6.7779,147.54,147.51,100.0]
[1719883734610,12.39,147.54,147.51,100.0]
[1719883734791,6.7774,147.55,147.51,106.7791]
[1719883735000,12.39,147.55,147.52,8.1341157]
[1719883735387,18.19262541,147.59,147.53,106.7781]
[1719883735613,32.39,147.57,147.53,106.7781]
[1719883736521,39.1667,147.57,147.53,100.0]
[1719883737023,15.98314246,147.59,147.53,100.0]
[1719883738315,12.39,147.58,147.57,100.0]
[1719883739710,6.7757,147.59,147.57,100.0]
[1719883739901,12.39,147.58,147.57,100.0]
[1719883740102,19.1657,147.59,147.57,100.0]
[1719883740742,12.39,147.59,147.57,100.0]
[1719883741108,19.1652,147.6,147.57,100.0]
[1719883741416,19.1652,147.6,147.57,101.35504761]
[1719883741624,6.7752,147.6,147.57,101.35504761]
[1719883741828,12.39,147.6,147.58,1.35503277]
[1719883742124,6.7747,147.61,147.58,1.35503277]
[1719883743009,6.7747,147.61,147.57,119.1663]
[1719883743324,19.1647,147.61,147.57,100.0]
[1719883744029,19.1647,147.61,147.57,106.7763]
[1719883744219,12.39,147.61,147.57,106.7763]
[1719883744823,19.1647,147.61,147.57,106.7763]
[1719883748131,12.39,147.61,147.57,106.7763]
[1719883748927,12.39,147.61,147.58,6.7759]
[1719883753016,12.39,147.62,147.58,6.7759]
[1719883755816,19.1641,147.62,147.58,6.7759]
[1719883758143,12.39,147.61,147.58,6.7759]
[1719883758940,19.1647,147.61,147.57,112.39]
[1719883759234,9.20724246,147.63,147.56,16.9418]
[1719883759235,12.39,147.59,147.56,16.9418]
[1719883759627,12.39,147.58,147.56,16.9418]
[1719883761324,12.39,147.58,147.56,23.7186]
[1719883763219,12.39,147.59,147.56,23.7186]
[1719883763416,6.7747,147.61,147.56,23.7186]
[1719883763619,12.39,147.59,147.56,23.7185]
[1719883765543,12.39,147.58,147.56,23.7185]
[1719883771638,12.39,147.59,147.56,23.7185]
[1719883779345,12.39,147.59,147.56,16.9418]
[1719883779543,12.39,147.57,147.54,6.7776]
[1719883779845,12.39,147.56,147.53,123.7229]
[1719883783663,12.39,147.55,147.53,16.9448]
[1719883783854,12.39,147.55,147.51,115.6276]
[1719883785339,6.7769,147.56,147.51,115.6276]
[1719883785560,12.39,147.55,147.52,1.35550156]
[1719883785870,12.39,147.55,147.52,8.13410156]
[1719883789665,19.1686,147.53,147.51,100.0]
[1719883789971,12.39,147.52,147.47,129.3418]
[1719883790152,12.39,147.51,147.47,116.9518]
[1719883790462,19.1692,147.51,147.47,116.9518]
[1719883790663,19.1692,147.51,147.47,123.7325]
[1719883790961,12.39,147.51,147.47,123.7325]
[1719883791169,12.39,147.5,147.47,123.7325]
[1719883791552,12.39,147.5,147.48,6.7805]
[1719883792672,12.39,147.5,147.47,116.9518]
[1719883792673,19.1695,147.51,147.47,118.30767207]
[1719883792877,12.39,147.5,147.47,118.30767207]
[1719883793172,12.39,147.5,147.47,125.08827207]
[1719883795377,12.39,147.49,147.47,18.30767207]
[1719883796464,12.39,147.49,147.47,16.9518]
[1719883798561,12.39,147.49,147.46,6.7813]
[1719883799070,12.39,147.48,147.45,100.0]
[1719883799268,12.39,147.48,147.45,6.7817]
[1719883799577,16.9449,147.54,147.45,6.7817]
[1719883799578,12.39,147.47,147.45,6.7817]
[1719883800567,6.7797,147.5,147.45,6.7817]
[1719883800877,12.39,147.47,147.45,8.13788464]
[1719883801380,12.39,147.47,147.46,6.7815]
[1719883802177,12.39,147.48,147.46,6.7815]
[1719883803465,12.39,147.48,147.45,8.13798464]
[1719883804279,12.39,147.48,147.46,100.0]
[1719883804886,12.39,147.47,147.44,16.9553]
[1719883805099,12.39,147.46,147.44,16.9553]
[1719883805465,6.7811,147.47,147.44,16.9553]
[1719883805667,12.39,147.45,147.44,16.9553]
[1719883806392,12.39,147.45,147.42,6.7833]
[1719883806675,12.39,147.43,147.41,23.7426]
[1719883806878,12.39,147.44,147.41,23.7426]
[1719883807964,16.9495,147.5,147.41,23.7426]
[1719883807965,16.9495,147.5,147.43,100.0]
[1719883808156,12.39,147.45,147.44,1.35628871]
[1719883808359,12.39,147.45,147.43,108.13886644]
[1719883809163,12.39,147.45,147.43,100.0]
[1719883809669,19.1719,147.45,147.43,100.0]
[1719883809869,12.39,147.44,147.41,23.7426]
[1719883810179,20.0,147.49,147.43,129.3464]
[1719883810360,19.1708,147.48,147.44,1.35620428]
[1719883810873,24.22218295,147.51,147.46,100.0]
[1719883811075,12.39,147.49,147.46,100.0]
[1719883811275,22.34564246,147.52,147.47,6.7807]
[1719883811663,12.39,147.5,147.47,6.7807]
[1719883812179,12.39,147.49,147.46,106.7814]
[1719883812377,12.39,147.48,147.46,100.0]
[1719883812583,12.39,147.48,147.45,23.7362]
[1719883813465,12.39,147.48,147.46,101.35610622]
[1719883814170,15.98624246,147.52,147.48,100.0]
[1719883814374,6.7783,147.53,147.48,106.7804]
[1719883814561,22.328,147.54,147.49,6.7801]
[1719883814764,12.39,147.52,147.5,6.7795]
[1719883815066,12.39,147.52,147.49,6.78]
[1719883815679,12.39,147.52,147.48,106.7805]
[1719883815882,19.1692,147.51,147.48,100.0]
[1719883817193,19.1692,147.51,147.49,1.35582556]
[1719883817482,12.39,147.52,147.49,1.35582389]
[1719883817687,12.39,147.52,147.48,106.7804]
[1719883818967,19.1689,147.52,147.48,106.7804]
[1719883819189,19.1689,147.52,147.48,100.0]
[1719883819889,19.1689,147.52,147.48,106.7805]
[1719883821287,19.1689,147.52,147.48,100.0]
[1719883821585,12.39,147.49,147.46,106.7813]
[1719883821789,12.39,147.49,147.46,100.0]
[1719883821989,12.39,147.49,147.46,106.7813]
[1719883822178,6.7792,147.51,147.46,106.7813]
[1719883822383,12.39,147.51,147.47,8.13679184]
[1719883822684,25.92918295,147.55,147.52,100.0]
[1719883822685,6.7774,147.55,147.52,100.0]
[1719883822868,19.1674,147.55,147.52,100.0]
[1719883823372,12.39,147.54,147.52,100.0]
[1719883824181,12.39,147.54,147.5,123.7282]
[1719883824486,12.39,147.53,147.5,116.9487]
[1719883825295,19.1693,147.51,147.48,100.0]
[1719883825987,12.39,147.51,147.48,101.35588267]
[1719883827184,19.1688,147.52,147.48,100.0]
[1719883827388,19.1688,147.52,147.49,1.35579358]
[1719883828381,19.1688,147.52,147.48,106.7805]
[1719883828801,19.1688,147.52,147.48,100.0]
[1719883829775,6.7792,147.51,147.48,100.0]
[1719883830391,12.39,147.52,147.48,106.7805]
[1719883830602,19.1687,147.53,147.5,100.0]
[1719883831291,19.1687,147.53,147.5,106.7795]
[1719883831292,12.39,147.53,147.5,106.7795]
[1719883832097,19.1678,147.54,147.5,106.7795]
[1719883832410,6.7778,147.54,147.5,106.7795]
[1719883832704,19.1678,147.54,147.5,106.7795]
[1719883832897,24.96982541,147.56,147.52,100.0]
[1719883833105,19.1674,147.55,147.52,100.0]
[1719883833400,19.1674,147.55,147.52,101.35549139]
[1719883835277,6.7774,147.55,147.52,101.35549139]
[1719883835703,6.7778,147.54,147.52,100.0]
[1719883837089,6.7774,147.55,147.52,100.0]
[1719883838400,15.45664246,147.59,147.54,100.0]
[1719883838596,6.7761,147.58,147.56,100.0]
[1719883839590,19.1656,147.59,147.56,100.0]
[1719883840482,6.776,147.58,147.56,100.0]
[1719883840989,19.1656,147.59,147.56,100.0]
[1719883843016,6.7764,147.57,147.56,100.0]
[1719883843386,6.7769,147.56,147.54,100.0]
[1719883844208,19.1664,147.57,147.54,100.0]
[1719883844500,12.39,147.57,147.54,100.0]
[1719883844906,19.166,147.58,147.54,100.0]
[1719883845407,19.166,147.58,147.54,106.7777]
[1719883845783,16.3311,147.61,147.56,100.0]
[1719883846117,20.0,147.6,147.56,100.0]
[1719883846305,32.39,147.6,147.56,100.0]
[1719883846609,32.39,147.6,147.56,106.7768]
[1719883846610,39.165,147.6,147.56,106.7768]
[1719883848206,7.05393326,147.62,147.59,100.0]
[1719883848396,15.75868295,147.64,147.61,100.0]
[1719883848599,12.39,147.63,147.61,100.0]
[1719883849301,19.1633,147.64,147.61,100.0]
[1719883849701,6.7741,147.62,147.59,16.9384]
[1719883850315,19.1641,147.62,147.59,16.9384]
[1719883850807,6.7736,147.64,147.61,100.0]
[1719883851008,12.39,147.63,147.61,100.0]
[1719883851209,19.1636,147.64,147.61,101.35473821]
[1719883851915,6.7736,147.64,147.61,101.35473821]
[1719883852212,19.1636,147.64,147.61,101.35473821]
[1719883852419,6.7736,147.64,147.61,100.0]
[1719883852593,19.1636,147.64,147.61,100.0]
[1719883853103,12.39,147.64,147.61,100.0]
[1719883853608,19.1632,147.64,147.61,100.0]
[1719883854729,19.1629,147.65,147.63,100.0]
[1719883854909,6.7729,147.65,147.63,100.0]
[1719883855914,19.1629,147.65,147.63,100.0]
[1719883856297,6.7729,147.65,147.63,100.0]
[1719883856495,6.7738,147.63,147.61,101.35458375]
[1719883856804,19.1638,147.63,147.59,116.9384]
[1719883857317,6.7726,147.66,147.63,100.0]
[1719883857523,19.1629,147.65,147.63,100.0]
[1719883858523,8.98538295,147.68,147.65,100.0]
[1719883858727,6.3275,147.7,147.65,100.0]
[1719883859020,6.77,147.71,147.69,100.0]
[1719883859420,12.39,147.7,147.69,100.0]
[1719883860220,19.1604,147.7,147.69,100.0]
[1719883861218,6.7701,147.71,147.69,100.0]
[1719883861406,6.7696,147.72,147.69,100.0]
[1719883861606,12.39,147.71,147.69,100.0]
[1719883862209,19.1596,147.72,147.69,100.0]
[1719883864009,6.7696,147.72,147.69,100.0]
[1719883864231,12.39,147.71,147.69,100.0]
[1719883864438,19.1596,147.72,147.69,100.0]
[1719883865236,8.98538295,147.76,147.69,100.0]
[1719883865237,8.98538295,147.76,147.71,100.0]
[1719883865522,15.75318295,147.76,147.73,100.0]
[1719883865723,0.8441632,147.81,147.78,100.0]
[1719883865931,12.39,147.8,147.78,106.7667]
[1719883866314,0.8441632,147.81,147.78,106.7667]
[1719883866315,13.2341632,147.81,147.78,106.7667]
[1719883866909,13.2341632,147.81,147.79,6.7662]
[1719883867619,0.8441632,147.81,147.8,106.7658]
[1719883868016,0.8441632,147.81,147.8,100.0]
[1719883869631,0.8441632,147.81,147.8,106.7658]
[1719883869927,13.2341632,147.81,147.78,106.7667]
[1719883871833,0.8441632,147.81,147.78,116.9163]
[1719883872022,13.2341632,147.81,147.78,123.683]
[1719883872219,12.39,147.8,147.78,116.9163]
[1719883872420,12.39,147.8,147.75,12.39]
[1719883872421,12.39,147.79,147.76,106.7677]
[1719883873019,12.39,147.78,147.74,100.0]
[1719883873222,12.39,147.76,147.74,6.7686]
[1719883873421,12.39,147.76,147.73,6.769]
[1719883873626,6.7673,147.77,147.72,123.6931]
[1719883873627,12.39,147.75,147.72,123.6931]
[1719883873937,6.7677,147.76,147.72,123.6931]
[1719883874523,6.7673,147.77,147.72,123.6931]
[1719883874926,6.7673,147.77,147.73,1.35364755]
[1719883875112,6.7673,147.77,147.72,123.6931]
[1719883875113,24.68,147.8,147.72,123.6931]
[1719883875313,24.68,147.77,147.69,16.9267]
[1719883875520,6.7687,147.74,147.69,16.9267]
[1719883875731,26.7681,147.76,147.71,106.7696]
[1719883875920,26.7681,147.76,147.72,1.35369026]
[1719883876123,26.7681,147.76,147.72,8.12309026]
[1719883876546,20.0,147.76,147.73,106.769]
[1719883876853,6.7673,147.77,147.73,106.769]
[1719883877039,6.7673,147.77,147.73,100.0]
[1719883879052,6.7683,147.75,147.73,100.0]
[1719883880372,24.68,147.77,147.68,116.9282]
[1719883881069,6.7687,147.74,147.69,6.7706]
[1719883881564,6.7687,147.74,147.7,6.7702]
[1719883881944,24.68,147.77,147.68,123.6991]
[1719883881945,6.7692,147.73,147.68,123.6991]
[1719883883064,6.7686,147.74,147.7,6.7703]
[1719883884564,6.7686,147.74,147.7,106.7703]
[1719883884768,24.68,147.77,147.72,100.0]
[1719883884961,20.0,147.76,147.72,100.0]
[1719883885750,20.0,147.76,147.74,100.0]
[1719883885975,6.7668,147.78,147.74,100.0]
[1719883886270,20.0,147.77,147.75,23.6882]
[1719883886453,26.7665,147.79,147.75,16.9201]
[1719883886647,6.7668,147.78,147.75,18.2735879]
[1719883886847,20.0,147.77,147.75,1.3534879]
[1719883887542,26.7673,147.77,147.74,100.0]
[1719883892767,20.0,147.77,147.76,100.0]
[1719883892967,20.0,147.78,147.76,100.0]
[1719883893159,26.7669,147.78,147.74,106.7685]
[1719883893363,6.7673,147.77,147.74,100.0]
[1719883893971,12.34,147.76,147.74,100.0]
[1719883894550,12.34,147.77,147.75,1.35349208]
[1719883896278,12.34,147.77,147.74,106.7686]
[1719883896465,12.34,147.77,147.74,100.0]
[1719883896660,23.4849632,147.81,147.74,116.921]
[1719883896871,12.34,147.77,147.74,123.6895]
[1719883897459,6.7668,147.78,147.74,123.6895]
[1719883897662,12.34,147.77,147.74,116.921]
[1719883898053,19.1073,147.77,147.74,116.921]
[1719883898269,6.7673,147.77,147.74,100.0]
[1719883898477,12.34,147.76,147.74,100.0]
[1719883898867,19.1078,147.76,147.74,100.0]
[1719883899170,12.34,147.75,147.74,100.0]
[1719883899681,12.34,147.76,147.74,100.0]
[1719883900381,12.34,147.77,147.74,106.7685]
[1719883900775,12.34,147.76,147.74,100.0]
[1719883903157,6.7669,147.78,147.74,106.7685]
[1719883903358,6.7664,147.79,147.76,100.0]
[1719883903561,12.34,147.77,147.76,100.0]
[1719883905486,6.7664,147.79,147.76,100.0]
[1719883905685,12.34,147.77,147.76,100.0]
[1719883907468,12.34,147.77,147.74,106.7685]
[1719883907669,19.1073,147.77,147.74,100.0]
[1719883907988,12.34,147.75,147.74,100.0]
[1719883908186,12.34,147.76,147.74,100.0]
[1719883909381,12.34,147.76,147.74,106.7686]
[1719883910088,12.34,147.76,147.73,16.9223]
[1719883910280,12.34,147.75,147.72,106.7692]
[1719883910485,12.34,147.75,147.71,6.7699]
[1719883910688,12.34,147.73,147.72,6.7695]
[1719883910869,12.34,147.74,147.72,6.7695]
[1719883911587,12.34,147.74,147.72,106.7695]
[1719883911893,12.34,147.75,147.72,106.7695]
[1719883912565,12.34,147.75,147.73,1.35368605]
[1719883912780,12.34,147.74,147.7,100.0]
[1719883912992,12.34,147.77,147.7,100.0]
[1719883913190,6.7683,147.75,147.7,106.7701]
[1719883913401,12.34,147.73,147.7,106.7701]
[1719883913975,12.34,147.73,147.71,6.7699]
[1719883914287,12.34,147.74,147.71,6.7699]
[1719883914669,12.34,147.74,147.72,1.3537511]
[1719883915485,12.34,147.74,147.72,8.1231511]
[1719883915679,12.34,147.75,147.73,6.769]
[1719883915899,12.34,147.75,147.74,100.0]
[1719883917695,7.06163472,147.79,147.74,100.0]
[1719883917900,12.34,147.76,147.74,100.0]
[1719883918077,12.34,147.76,147.74,101.35352587]
[1719883918278,12.34,147.76,147.74,100.0]
[1719883918494,6.7673,147.77,147.74,100.0]
[1719883918677,12.34,147.76,147.74,100.0]
[1719883918985,12.34,147.75,147.74,100.0]
[1719883919188,12.34,147.77,147.75,6.768]
[1719883919993,12.34,147.77,147.74,106.7685]
[1719883920496,12.34,147.77,147.75,6.768]
[1719883920691,12.34,147.76,147.74,100.0]
[1719883920872,12.34,147.75,147.73,23.6905]
[1719883921687,12.34,147.75,147.73,25.04409635]
[1719883922374,7.06163472,147.79,147.7,16.9257]
[1719883922682,6.7696,147.72,147.68,6.771]
[1719883923084,12.34,147.71,147.68,6.771]
[1719883923885,12.34,147.69,147.67,16.9293]
[1719883924193,12.34,147.69,147.66,100.0]
[1719883924395,19.1109,147.69,147.64,123.7058]
[1719883924699,19.1109,147.69,147.65,6.7727]
[1719883924700,12.34,147.69,147.65,6.7727]
[1719883925299,12.34,147.68,147.65,6.7727]
[1719883925476,12.34,147.68,147.65,8.12704631]
[1719883926402,12.34,147.67,147.65,8.12704631]
[1719883926576,6.7705,147.7,147.65,8.12704631]
[1719883926780,12.34,147.68,147.65,8.12704631]
[1719883927301,12.34,147.68,147.66,6.7722]